Cogmind - Beta 13 @@@ ROGUE MODE // 2024.04.04 @ 22:41:52 Player: epidermus Result: Destroyed self with Grenade Launcher Performance ------------- Evolutions (0) 0 Regions Visited (3) 600 Robots Destroyed (16) 80 Value Destroyed (486) 486 Prototype IDs (0) 0 Alien Tech Used (0) 0 Bonus (-190) -190 TOTAL SCORE: 976 Bonus ------- Follower Combat Kills 21 Friendly Fire -211 Cogmind --------- Core Integrity 0/250 Matter 221/300 Energy 100/100 System Corruption 7% Temperature Cool (0) Movement Core (750) Ox14 Location -10/Subcaves Parts ------- > --- POWER (1) -------- (None) > --- PROPULSION (2) --- (None) > --- UTILITY (2) ------ High-capacity Storage Unit > --- WEAPON (2) ------- Grenade Launcher (fused) > --- INVENTORY (20) --- Ion Engine Light Nuclear Core Medium Storage Unit Seismic Detector Transport Network Coupler Targeting Computer Scrap Shield Small Laser Light Assault Rifle Light Assault Rifle Makeshift Hammer Peak State ------------ > --- POWER ------------ (None) > --- PROPULSION ------- Light Treads Light Treads > --- UTILITY ---------- Improved Heat Sink High-capacity Storage Unit > --- WEAPON ----------- Light Assault Rifle Makeshift Hammer > --- INVENTORY -------- Ion Engine Light Nuclear Core Medium Storage Unit Seismic Detector Transport Network Coupler Targeting Computer Small Laser Light Assault Rifle Grenade Launcher Grenade Launcher [Rating: 12] Favorites ----------- Power Light Ion Engine Engine Light Ion Engine Propulsion Light Treads Treads Light Treads Wheel Wheel Utility Improved Heat Sink Device Improved Heat Sink Storage High-capacity Storage Unit Weapon Light Assault Rifle Energy Gun Small Laser Ballistic Gun Light Assault Rifle Launcher Grenade Launcher Impact Weapon Makeshift Hammer Build | -11 -10 -10 -10 ------- Run | Yrd Mat Min Sub Slots Evolved . | . . . . Power . | . . . . Propulsion . | . . . . Utility . | . . . . Weapon . | . . . . Parts Attached 19 | 5 8 6 . Power 1 | 1 . . . Engine 1 | 1 . . . Core . | . . . . Reactor . | . . . . Propulsion 4 | 2 2 . . Treads 2 | . 2 . . Leg . | . . . . Wheel 2 | 2 . . . Hover . | . . . . Flight . | . . . . Utility 5 | . 4 1 . Device 3 | . 3 . . Storage 2 | . 1 1 . Processor . | . . . . Hackware . | . . . . Protection . | . . . . Artifact . | . . . . Weapon 9 | 2 2 5 . Energy Gun 1 | . 1 . . Energy Cannon . | . . . . Ballistic Gun 5 | 2 1 2 . Ballistic Cannon . | . . . . Launcher 2 | . . 2 . Special Weapon . | . . . . Impact Weapon 1 | . . 1 . Slashing Weapon . | . . . . Piercing Weapon . | . . . . Special Melee Weapon . | . . . . Unidentified Prototypes . | . . . . Parts Lost 9 | . 2 5 2 Power 1 | . . 1 . Propulsion 3 | . 1 1 1 Utility 1 | . . 1 . Weapon 4 | . 1 2 1 Highest Loss Streak 2 | . 1 2 2 To Critical Strikes 1 | . . 1 . Average Slot Usage (%) 84 | . 94 83 50 Engine 8 | . 14 7 . Treads 22 | . 18 25 10 Wheel 2 | . 6 . . Device 14 | . 22 11 . Storage 10 | . 2 14 14 Energy Gun 3 | . 12 . . Ballistic Gun 15 | . 15 17 . Launcher 4 | . . 4 25 Naked Turns . | . . . . Heaviest Build 47 | 5 17 47 46 Greatest Support 40 | 20 40 40 20 Greatest Overweight (x) 15 | . . 2 15 Average Overweight (x) . | . . . 3 Largest Inventory Capacity 20 | 5 10 20 20 Average Capacity 13 | 5 5 17 20 Most Carried 12 | 3 5 11 12 Average Carried 7 | . 3 8 11 Final Capacity 20 | 5 10 20 20 Final Carried 12 | 1 5 10 12 Class Distribution -------------------- 100% | Mutant Dominant Class ---------------- Mutant | -10/Materials Mutant | -10/Mines Mutant | -10/Subcaves Resources | -11 -10 -10 -10 ----------- Run | Yrd Mat Min Sub Matter Collected 521 | 254 155 97 15 Remotely . | . . . . Salvage Created 488 | 39 310 121 18 Parts 41 | 1 31 7 2 Haulers Intercepted . | . . . . Recyclers Shooed . | . . . . Parts Field Recycled . | . . . . Retrieved Matter . | . . . . Parts Self-Destructed 4 | . . . 4 Prevented . | . . . . Kills | -11 -10 -10 -10 ------- Run | Yrd Mat Min Sub Combat Hostiles Destroyed 14 | 1 10 2 1 Guns 12 | 1 9 2 . AOE 2 | . 1 . 1 Classes Destroyed 4 | 1 2 . 1 Watcher 1 | . 1 . . Swarmer 2 | . 2 . . Grunt 12 | 1 8 3 . Subdweller 1 | . . . 1 Best Kill Streak 3 | 1 3 1 1 Combat Bots Only 3 | 1 3 1 1 Max Kills in Single Turn 2 | 1 2 1 1 Gunslinging 1 | . 1 . . Exploded 1 | . 1 . 1 Melee . | . . . . Uniques/NPCs Destroyed . | . . . . Combat | -11 -10 -10 -10 -------- Run | Yrd Mat Min Sub Hostile Shots Fired 133 | 3 70 45 15 Missed 51 | . 27 19 5 Damage Taken 1251 | 31 459 548 213 Core 253 | 20 106 65 62 Absorbed by Shields . | . . . . Core Remaining (%) 92 | 92 . . . Volleys Fired 70 | 2 36 31 1 Largest 2 | 2 2 2 1 Hottest 60 | 40 60 60 30 Shots Fired 127 | 4 72 49 2 Gun 121 | 4 72 45 . Cannon . | . . . . Launcher 6 | . . 4 2 Special . | . . . . Kinetic 98 | 4 49 45 . Thermal 23 | . 23 . . Explosive 6 | . . 4 2 Electromagnetic . | . . . . Robot Hit Streak 6 | 4 5 6 3 Robot Miss Streak 4 | . 4 3 . Penetration Max . | . . . . Secondary Targets 3 | . 3 . . Max Gunslinging Chain 1 | . 1 . . Shots Hit Robots 73 | 4 41 26 2 Core Hits 33 | 2 19 8 4 Critical Kills . | . . . . Critical Parts Destroyed . | . . . . Critical Strikes . | . . . . Melee Attacks . | . . . . Impact . | . . . . Slashing . | . . . . Piercing . | . . . . Sneak Attacks . | . . . . Combat Hostiles . | . . . . Follow-up Attacks . | . . . . Damage Inflicted 1053 | 36 604 292 121 Guns 753 | 36 462 255 . Cannons . | . . . . Explosions 299 | . 142 36 121 Melee . | . . . . Ramming 1 | . . 1 . Kinetic 567 | 36 276 255 . Thermal 186 | . 186 . . Explosive 299 | . 142 36 121 Electromagnetic . | . . . . Impact . | . . . . Slashing . | . . . . Piercing . | . . . . Highest Corruption 7 | . . 7 7 Average Corruption 7 | . . 7 7 Corruption Purged . | . . . . Corruption Blocked . | . . . . Effects 11 | . . 6 5 Message Errors 2 | . . 1 1 Matter Fused 3 | . . 1 2 Heat Flow Errors 1 | . . 1 . Energy Discharges 1 | . . 1 . Parts Fused 1 | . . 1 . Data Loss (minor) 1 | . . 1 . Data Loss (major) 1 | . . . 1 Misfires 1 | . . . 1 Overload Shots . | . . . . Overflow Damage . | . . . . Projectiles . | . . . . Explosions . | . . . . Melee . | . . . . Knockbacks . | . . . . Impact . | . . . . Kinetic . | . . . . Secondary . | . . . . Self-Inflicted Damage 48 | . . 26 22 Shots 3 | . . 2 1 Rammed 1 | . . 1 . Targets Rammed 1 | . . 1 . Kicked . | . . . . Crushed . | . . . . Highest Temperature 166 | 6 24 166 . Average Temperature 27 | 6 9 82 . Received Heat Transfer 447 | 18 222 198 9 Siege Activations . | . . . . Robots Corrupted . | . . . . Combat Hostiles . | . . . . Parts Fried . | . . . . Impact Corruptions . | . . . . Robots Melted . | . . . . Combat Hostiles . | . . . . Parts Melted . | . . . . Heat Transferred 425 | . 425 . . Parts Sabotaged . | . . . . Parts Stolen . | . . . . Parts Stripped . | . . . . Power Chain Reactions . | . . . . Alert | -11 -10 -10 -10 ------- Run | Yrd Mat Min Sub Peak Influence 219 | 35 219 127 . Initial 57 | . 22 57 . Average 63 | 3 123 38 . Maximum Alert Level 1 | . 1 . . Low Security (%) 92 | 100 75 100 . Level 1 7 | . 24 . . Level 2 . | . . . . Level 3 . | . . . . Level 4 . | . . . . Level 5 . | . . . . High Security . | . . . . Max Security . | . . . . Squads Dispatched 4 | . 4 . . Investigation 2 | . 2 . . Extermination . | . . . . Reinforcement 2 | . 2 . . Assault . | . . . . Garrison . | . . . . Intercept . | . . . . Searches Triggered . | . . . . Construction Impeded . | . . . . Haulers Reinforced . | . . . . Active Scanning Responses . | . . . . Cargo Convoy Interrupts . | . . . . Stealth | -11 -10 -10 -10 --------- Run | Yrd Mat Min Sub Distress Signals . | . . . . Communications Jammed . | . . . . Distress Signals . | . . . . Times Spotted 30 | 1 21 6 2 Peak Tracking Total 4 | 1 4 3 2 Tactical Retreats 1 | . . 1 . Traps | -11 -10 -10 -10 ------- Run | Yrd Mat Min Sub Traps Triggered 1 | . 1 . . Indirectly . | . . . . Trap Hack Attempts . | . . . . Triggered . | . . . . Disarmed . | . . . . Reprogrammed . | . . . . Reused . | . . . . Traps Extracted . | . . . . Installed . | . . . . Triggered . | . . . . Machines | -11 -10 -10 -10 ---------- Run | Yrd Mat Min Sub Machines Disabled 1 | . 1 . . Max in Single Turn 1 | . 1 . . Machines Repaired . | . . . . Machines Dismantled . | . . . . Machines Sabotaged . | . . . . Overloaded Fab Kills . | . . . . Hacking | -11 -10 -10 -10 --------- Run | Yrd Mat Min Sub Machines Accessed 2 | . 2 . . Terminals 2 | . 2 . . Fabricators . | . . . . Repair Stations . | . . . . Recycling Units . | . . . . Scanalyzers . | . . . . Garrison Access . | . . . . Total Hacks 6 | . 6 . . Successful 5 | . 5 . . Failed 1 | . 1 . . Catastrophic . | . . . . Database Lockouts . | . . . . Manual . | . . . . Terminals 6 | . 6 . . Fabricators . | . . . . Repair Stations . | . . . . Recycling Units . | . . . . Scanalyzers . | . . . . Garrison Access . | . . . . Terminal Hacks 5 | . 5 . . Record 3 | . 3 . . Locate Traps 1 | . 1 . . Hauler Manifests 1 | . 1 . . Fabricator Hacks . | . . . . Repair Station Hacks . | . . . . Recycling Unit Hacks . | . . . . Scanalyzer . | . . . . Garrison Access Hacks . | . . . . Unauthorized Hacks . | . . . . Terminals . | . . . . Fabricators . | . . . . Repair Stations . | . . . . Recycling Units . | . . . . Scanalyzers . | . . . . Garrison Access . | . . . . Data Cores Recovered . | . . . . Used . | . . . . Hacking Detections 2 | . 2 . . Full Trace Events 1 | . 1 . . Feedback Events . | . . . . Feedback Blocked . | . . . . Robot Schematics Acquired . | . . . . Robots Built . | . . . . Authchips . | . . . . Time . | . . . . Total Robot Build Rating . | . . . . Part Schematics Acquired . | . . . . Parts Built . | . . . . Authchips . | . . . . Time . | . . . . Total Part Build Rating . | . . . . Parts Repaired . | . . . . Time . | . . . . Parts Recycled . | . . . . Recycled Matter . | . . . . Retrieved Matter . | . . . . Retrieved Components . | . . . . Parts Scanalyzed . | . . . . Part Schematics Acquired . | . . . . Parts Damaged . | . . . . Bothacking | -11 -10 -10 -10 ------------ Run | Yrd Mat Min Sub Used RIF Installer . | . . . . Robots Hacked . | . . . . Non-combat . | . . . . Combat . | . . . . Robot Hacks Applied . | . . . . Relay Couplers Released . | . . . . Fabnet Peak Effective % . | . . . . Robots Rewired . | . . . . Allies Hacked . | . . . . Hacks Repelled . | . . . . Allies | -11 -10 -10 -10 -------- Run | Yrd Mat Min Sub Total Allies 3 | . . 3 . Largest Group 3 | . . 3 2 Highest-Rated Group 40 | . . 40 32 Highest-Rated Ally 16 | . . 16 16 Total Orders . | . . . . Ally Attacks 12 | . . 11 1 Total Damage 145 | . . 128 17 Kills 3 | . . 3 . Allies Corrupted . | . . . . Allies Melted . | . . . . Intel | -11 -10 -10 -10 ------- Run | Yrd Mat Min Sub Robot Analysis Total . | . . . . Derelict Logs Recovered 1 | . . 1 . Drone Launches . | . . . . Drone Recoveries . | . . . . Exploration | -11 -10 -10 -10 ------------- Run | Yrd Mat Min Sub Turns Passed 2699 | 89 797 1637 176 Spaces Moved 1357 | 100 507 704 46 Core 30 | 24 . . 6 Treads 1081 | . 337 704 40 Legs . | . . . . Wheels 246 | 76 170 . . Hover . | . . . . Flight . | . . . . Fastest Speed 50 | 50 80 160 320 Average Speed 182 | 72 133 220 380 Slowest Speed 800 | 80 160 320 800 Overloaded Moves . | . . . . Propulsion Burnouts . | . . . . Robots Hopped . | . . . . Cave-ins Triggered 1 | . . 1 . Exploration Rate (%) 34 | 7 37 87 6 Regions Visited 3 Branch Regions 2 Pre-discovered Areas . | . . . . Known Exits Taken . | . . . . Unknown Exits Taken 3 | 1 1 1 . Scrap Searched 2 | . . 2 . Spaces Dug 32 | . . 32 . Terrain Destroyed 46 | . 5 32 9 Melee . | . . . . Projectile . | . . . . AOE 46 | . 5 32 9 Terrain Rammed . | . . . . Walls Destroyed . | . . . . Machines Disabled . | . . . . Actions | -11 -10 -10 -10 --------- Run | Yrd Mat Min Sub Total 1470 | 112 561 749 48 Wait . | . . . . Move 1353 | 99 506 702 46 Hop . | . . . . Pick Up 24 | 6 9 8 1 Fast Attach . | . . . . Attach 11 | 5 3 3 . Detach . | . . . . Swap 8 | . 5 3 . Drop 2 | . 2 . . Fire 70 | 2 36 31 1 Melee . | . . . . Ram . | . . . . Kick . | . . . . Crush 1 | . . 1 . Escape Stasis 1 | . . 1 . Rewire . | . . . . Trap . | . . . . Miscellaneous . | . . . . Route ------- -11/Scrapyard -10/Materials (discovered 2 exits: [*Mat] / [*Min]) -10/Mines (discovered 2 exits: [*Mat] / [*Sub]) -10/Subcaves History --------- Turn | Location | Event 2 | -11/Scrapyard | Met Revision 17 73 | -11/Scrapyard | Discovered new exit (range 8) 90 | -11/Scrapyard | Entered Materials 336 | -10/Materials | Build established: Mutant 532 | -10/Materials | Discovered new exit (range 7) 678 | -10/Materials | Discovered new exit (range 16) 878 | -10/Materials | Core integrity fell below 50% 887 | -10/Materials | Entered Mines 888 | -10/Mines | YI-UF0 nonchalantly dropped a Grenade Launcher on the ground 1034 | -10/Mines | Discovered new exit (range 8) 1561 | -10/Mines | Assisted by bots powering up and referring to "LRC-V3" 1826 | -10/Mines | Learned Materials garrison access intel 1917 | -10/Mines | Discovered new exit (range 7) 2097 | -10/Mines | A weapon hastily lodged in a ceiling crevice suddenly fell to the ground 2273 | -10/Mines | Crushed by falling debris 2524 | -10/Mines | Entered Subcaves 2524 | -10/Subcaves | Accompanied by 2 allies 2672 | -10/Subcaves | Core integrity fell below 20% 2694 | -10/Subcaves | Lost 3 allies 2700 | -10/Subcaves | Destroyed self with Grenade Launcher Last Messages --------------- [Achievement: Maybe Next Time I'll Detach My Launcher] QMUXFVY23LZ7|SXFJN11E Acquired 15 matter. Trooper 1a destroyed. Subatomizers dissect the Wheel. Trooper 1b destroyed. Subatomizers dissect the Wheel. Lgt. Treads destroyed. HV Slug penetrates Wall. HV Slug penetrates Y-45 Defender. Y-45 Defender destroyed. Lgt. Armor Plating fries itself beyond repair. Heat Sink fries itself beyond repair. DW-M1H(h) destroyed. Subatomizers dissect the Wheel. Lgt. Treads fries itself beyond repair. System corrupted: Matter fused (-8). Grenade Launcher destroyed. System corrupted: Substantial component data lost. NY-VSD(R) destroyed. Map ----- +----------------------------------------------------+ | ?????????????????????????????????????????????????? | | ?????????????????????????????????????????????????? | | ?????????????????????????????????????????????????? | | ?????????????????????????????????????????????????? | | ?????????????????????????????????????????????????? | | ?????????????????????????????????????????????????? | | ?????????????????????????????????????????????????? | | ?????????????????????????????????????????????????? | | ?????????????????????????????????????????????????? | | ?????????????????????????????????????????????????? | | ???????????????????????? ???????????????????????? | | ????#??????????????????? ???????????????????????? | | ???# ?????????????????? ???????????????????????? | | ??? ????????????????? ???????????????????????? | | ???? ??????????#? ???? ???????????????????????? | | ???? ???#"????# " ??? ????????? #????????????? | | ???? ##?#"##?# ???? #??????? ##???????????? | | ???? ? ##"" ???? #??????? #?? ????????? | | ???? ?? # ""#????" ?????? #? ????????? | | ???## ??? # #????# #?????? #!% ????????? | | ???# ???? #?????" #????? %=?????????? | | ???? #????? " ####??"" #????# *=#??????????? | | ????# ?????# " ?# #?## ##?## *%!## ??????? | | ???## ##????# #?# #?#" #? ! = ??????? | | ??## ###### ### #??# ##? %!* % ???????? | | ??# # ## #### @ ## %%! #??????????? | | ?## " ## # *[ #??????????? | | ?# ###"### %! # %##!&#??????????? | | ##?#### ! ##?? ##??????????????? | | ## ##?????# ##????????????????????? | | ?## ??????# ### #?????????????????????? | | ??#####??????# ##?# ##?????????????????????? | | ?????????????######??## #??????????????????????? | | ??????????????????????# #??????????????????????? | | ??????????????????????## ?????????????????????? | | ???????????????????????# #????????????????????? | | ???????????????????????# #????????????????????? | | ???????????????????????# ##????????????????????? | | ???????????????????????# ###?????????????????????? | | ??????????????????????? #???????????????????????? | | ??????????????????????? ???????????????????????? | | ??????????????????????? ???????????????????????? | | ??????????????????????? ???????????????????????? | | ??????????????????????# ???????????????????????? | | ??????????????????????? ???????????????????????? | | ??????????????????????? ???????????????????????? | | ?????????????????????????????????????????????????? | | ?????????????????????????????????????????????????? | | ?????????????????????????????????????????????????? | | ?????????????????????????????????????????????????? | +----------------------------------------------------+ Best States ------------- Heat Dissipation 39 Energy Generation 10 Energy Capacity 125 Matter Stores 300 Matter Capacity 300 Sight Range 16 Terrain Scan Density 10 Evasion (%) 50 Recoil Reduction 2 Item Schematics ----------------- None Robot Schematics ------------------ None Fabricated ------------ Nothing Alien Tech Used ----------------- None Achievements -------------- Backstab Maybe Next Time I'll Detach My Launcher Shopping List Unlikely Earthworm Challenges ------------ None Game ------ Seed RegenerativeBladeInterrupter Manual? 0 Play Time 00:20:38 Cumulative 1.3 hours Start 2024.04.04 @ 22:18:18 End 2024.04.04 @ 22:41:52 Sessions 1 Manual Loads 0 Difficulty Rogue Special Mode None Game No. 2 Rogue 2 Adventurer 0 Explorer 0 Win Type - Total 0 Types 0/0/0/0/0/0/0/0/0 Lore% 0 Gallery% 4 Achievement% 4 Wizard Run 0 Options --------- Layout 1 ASCII 0 Keyboard 0 Movement Arrows Keybinds 0 Fullscreen 1 Font 32/Tamsyn Map View 77x35 Zoom Use 0% Tactical HUD 0 Map Filters NONE Filters NONE Steam 1 RUN: 2ca87e8b-92cd-4ba3-87cf-f041d0b035b7